Service area,Service sub division,TVBC Service,Expense type,Detailed expense type,TVBC account code,Date Paid,Transaction Reference, Nett Value ,Supplier Name
Cultural & Related,Recreation & Sport,Community and Leisure ,Third Party Payments,Private contractors,Main Contractor Costs,20/12/2017,230766,-119500,Places For People Leisure Ltd - Developments
Planning & Development,Economic Development,Estates and Economic Development ,Supplies & Services,Grants & Subscriptions,Grants,13/12/2017,230423,500,Ambrosia 69 Ltd
Planning & Development,Community Development,Community and Leisure ,Supplies & Services,Grants & Subscriptions,Grants,14/12/2017,230427,500,Chilbolton Parish Council
Cultural & Related,Recreation & Sport,Community and Leisure ,Premises related Expenditure,Repairs Alterations & Maintenance of Buildings,Estates premises costs - AMP,14/12/2017,222535,425,White Horse Contractors Ltd
Central Services to the Public,Management & Support Services,Estates and Economic Development ,Employees,Indirect Employee Expenses,Staff Professional Fees,07/12/2017,229908,519,Personal data - Data Protection Act 1998
Central Services to the Public,Management & Support Services,Estates and Economic Development ,Employees,Indirect Employee Expenses,Staff Professional Fees,07/12/2017,229909,519,Personal data - Data Protection Act 1998
Planning & Development,Building Control,Planning & Building,Employees,Indirect Employee Expenses,Staff Professional Fees,14/12/2017,230430,519,Personal data - Data Protection Act 1998
Planning & Development,Building Control,Planning & Building,Employees,Indirect Employee Expenses,Staff Professional Fees,20/12/2017,231007,519,Personal data - Data Protection Act 1998
Central Services to the Public,Management & Support Services,Environmental,Premises related Expenditure,Cleaning and domestic supplies,Cleaning Materials-Purchases,13/12/2017,229787,112.64,Johnsons Apparelmaster Ltd
Central Services to the Public,Management & Support Services,Environmental,Supplies & Services,"Clothes, Uniforms & Laundry",Laundry,13/12/2017,229787,321.64,Johnsons Apparelmaster Ltd
Environmental & Regulatory,Waste management,Environmental,Supplies & Services,"Printing, Stationery & General Office Expenses",External Printing,07/12/2017,229775,438.8,Steele Signs
Central Services to the Public,Management & Support Services,IT,Supplies & Services,Communications & Computing,Computer Hardware,14/12/2017,230274,445.5,Essentra Components Ltd
Housing Services,Housing Benefits ,Revenues,Supplies & Services,Miscellaneous Expenses,Medical Fees,20/12/2017,230721,450,British Dyslexia Association
Environmental & Regulatory,Street Cleansing (not chargeable to Highways),Environmental,Transport Related Expenditure,Contract Hire and Operating Leases,Vehicles-Hired\Leased,06/12/2017,229409,450,Go Plant Ltd
Environmental & Regulatory,Street Cleansing (not chargeable to Highways),Environmental,Transport Related Expenditure,Contract Hire and Operating Leases,Vehicles-Hired\Leased,13/12/2017,230204,450,Go Plant Ltd
Central Services to the Public,Local Tax Collection,Revenues,Supplies & Services,"Equipment, Furniture & Materials",Purchase Furniture,07/12/2017,229798,73.4,Lyreco Uk Ltd
Central Services to the Public,Local Tax Collection,Revenues,Supplies & Services,"Printing, Stationery & General Office Expenses",Stationery,07/12/2017,229798,7.42,Lyreco Uk Ltd
Central Services to the Public,Local Tax Collection,Revenues,Supplies & Services,"Equipment, Furniture & Materials",Purchase Furniture,07/12/2017,229798,171.27,Lyreco Uk Ltd
Central Services to the Public,Local Tax Collection,Revenues,Supplies & Services,"Printing, Stationery & General Office Expenses",Stationery,07/12/2017,229798,29.69,Lyreco Uk Ltd
Housing Services,Housing Benefits ,Revenues,Supplies & Services,"Equipment, Furniture & Materials",Purchase Furniture,07/12/2017,229798,73.62,Lyreco Uk Ltd
Housing Services,Housing Benefits ,Revenues,Supplies & Services,"Printing, Stationery & General Office Expenses",Stationery,07/12/2017,229798,18.56,Lyreco Uk Ltd
Central Services to the Public,Local Tax Collection,Revenues,Supplies & Services,"Equipment, Furniture & Materials",Purchase Furniture,07/12/2017,229798,73.62,Lyreco Uk Ltd
Central Services to the Public,Local Tax Collection,Revenues,Supplies & Services,"Printing, Stationery & General Office Expenses",Stationery,07/12/2017,229798,18.56,Lyreco Uk Ltd
Environmental & Regulatory,Waste management,Environmental,Transport Related Expenditure,Direct Transport Costs,Repair Materials,14/12/2017,230198,469.92,Terberg Matec Uk Limited
External Trading Accounts,Business Parks,Estates and Economic Development ,Premises related Expenditure,Grounds Maintenance Costs,Grounds Maintenance Contracts,20/12/2017,230831,473.19,Landmarks Sustainability Ltd
Cultural & Related,Culture & Heritage,Estates and Economic Development ,Supplies & Services,Miscellaneous Expenses,Waste Collection,14/12/2017,230388,145.38,Suez Recycling And Recovery Uk Ltd
Central Services to the Public,Management & Support Services,Estates and Economic Development ,Supplies & Services,Miscellaneous Expenses,Waste Collection,14/12/2017,230388,341.78,Suez Recycling And Recovery Uk Ltd
Cultural & Related,Culture & Heritage,Community and Leisure ,Supplies & Services,Miscellaneous Expenses,Booking Of Acts,07/12/2017,229799,487.5,Fb Music And Media Ltd
Cultural & Related,Open Spaces,Community and Leisure ,Premises related Expenditure,Grounds Maintenance Costs,Gm - Additional Works,07/12/2017,229764,491,Personal data - Data Protection Act 1998
Cultural & Related,Culture & Heritage,Community and Leisure ,Premises related Expenditure,Repairs Alterations & Maintenance of Buildings,Planned Maintenance - Non Est,20/12/2017,230849,499.5,Pattco
Planning & Development,Development Control,Planning & Building,Supplies & Services,Miscellaneous Expenses,Planning Appeal Costs,07/12/2017,229347,500,Sharpe Pritchard
Central Services to the Public,Management & Support Services,Estates and Economic Development ,Premises related Expenditure,Water Services,Water And Sewerage Charges,07/12/2017,229465,601.42,Business Stream
Central Services to the Public,Management & Support Services,Estates and Economic Development ,Premises related Expenditure,Energy Costs,Gas,20/12/2017,230823,506.75,Total Gas & Power Ltd
"Highways, Roads & Transport",Highways and roads - maintenance,Plan Pol & Transport,Supplies & Services,Communications & Computing,Mobile Telephone Charges,07/12/2017,229820,510,Vodafone Limited
Planning & Development,Development Control,Planning & Building,Supplies & Services,"Printing, Stationery & General Office Expenses",Stationery,20/12/2017,229814,366.06,Lyreco Uk Ltd
Planning & Development,Development Control,Planning & Building,Supplies & Services,"Printing, Stationery & General Office Expenses",Print Consumables,20/12/2017,229814,147.49,Lyreco Uk Ltd
Environmental & Regulatory,Street Cleansing (not chargeable to Highways),Environmental,Supplies & Services,"Equipment, Furniture & Materials",Purchase Equip + Materials,07/12/2017,229453,525,Teleshore
Central Services to the Public,Management & Support Services,Legal & Democratic,Employees,Indirect Employee Expenses,Agency Staff - Waged Posts,14/12/2017,229173,540,Venn Group
Central Services to the Public,Management & Support Services,Legal & Democratic,Employees,Indirect Employee Expenses,Agency Staff - Waged Posts,14/12/2017,229757,540,Venn Group
Central Services to the Public,Management & Support Services,Legal & Democratic,Employees,Indirect Employee Expenses,Agency Staff - Waged Posts,14/12/2017,230238,540,Venn Group
Central Services to the Public,Management & Support Services,Legal & Democratic,Employees,Indirect Employee Expenses,Agency Staff - Waged Posts,20/12/2017,230740,540,Venn Group
Cultural & Related,Open Spaces,Environmental,Supplies & Services,Miscellaneous Expenses,Waste Collection,14/12/2017,229185,546.64,Raymond Brown Minerals & Recycling Ltd
Environmental & Regulatory,Waste management,Environmental,Transport Related Expenditure,Direct Transport Costs,Repair Materials,07/12/2017,229708,307.79,Dennis Eagle Ltd
Environmental & Regulatory,Waste management,Environmental,Transport Related Expenditure,Direct Transport Costs,Repair Materials,07/12/2017,229708,241.34,Dennis Eagle Ltd
Cultural & Related,Culture & Heritage,Community and Leisure ,Supplies & Services,"Printing, Stationery & General Office Expenses",Postage Costs,14/12/2017,230396,558.29,Royal Mail
Planning & Development,Economic Development,Estates and Economic Development ,Supplies & Services,Services,Training Courses,14/12/2017,230208,670,Alternative Fitness Solutions
Central Services to the Public,Management & Support Services,Legal & Democratic,Employees,Indirect Employee Expenses,Agency Staff - Waged Posts,14/12/2017,227380,573.75,Venn Group
Central Services to the Public,Management & Support Services,Housing and Environmental Health ,Supplies & Services,Services,Training Courses,14/12/2017,230500,575,Rh Environmental Ltd
Cultural & Related,Open Spaces,Environmental,Premises related Expenditure,Water Services,Water And Sewerage Charges,07/12/2017,229711,584.34,Aquam Water Services
Central Services to the Public,Management & Support Services,Chief Executive's,Supplies & Services,"Printing, Stationery & General Office Expenses",Conference Costs,07/12/2017,229895,299,District Councils' Network
Central Services to the Public,Management & Support Services,Housing and Environmental Health ,Supplies & Services,Services,Training Courses,07/12/2017,229895,299,District Councils' Network
Central Services to the Public,Management & Support Services,Environmental,Supplies & Services,"Clothes, Uniforms & Laundry",Clothing + Uniforms,14/12/2017,230195,601.11,Arco Ltd
Central Services to the Public,Management & Support Services,Community and Leisure ,Supplies & Services,"Printing, Stationery & General Office Expenses",Photocopying Costs,20/12/2017,229438,601.6,Ricoh Uk Ltd
"Highways, Roads & Transport",Parking Services,Plan Pol & Transport,Supplies & Services,Services,Professional Fees,07/12/2017,229429,722.95,Patrol
Environmental & Regulatory,Waste management,Environmental,Employees,Indirect Employee Expenses,Agency Staff - Waged Posts,07/12/2017,229893,617.12,Abacus Employment Services Ltd
"Highways, Roads & Transport",Public Transport,Plan Pol & Transport,Third Party Payments,Transport Operators in Respect of Concessionary Fares,Voluntary Orgs Reimbursement,07/12/2017,229911,742,Romsey Good Neighbours
Central Services to the Public,Management & Support Services,Legal & Democratic,Supplies & Services,"Printing, Stationery & General Office Expenses",Stationery,14/12/2017,229813,339.15,Lyreco Uk Ltd
Central Services to the Public,Local Land Charges,Legal & Democratic,Supplies & Services,"Printing, Stationery & General Office Expenses",Stationery,14/12/2017,229813,53.37,Lyreco Uk Ltd
Central Services to the Public,Elections,Legal & Democratic,Supplies & Services,"Printing, Stationery & General Office Expenses",Stationery,14/12/2017,229813,61.12,Lyreco Uk Ltd
Environmental & Regulatory,Regulatory Services,Legal & Democratic,Supplies & Services,"Printing, Stationery & General Office Expenses",Stationery,14/12/2017,229813,126.86,Lyreco Uk Ltd
Central Services,Corporate & Democratic Core,Corporate & Democratic,Supplies & Services,"Printing, Stationery & General Office Expenses",Stationery,14/12/2017,229813,12.42,Lyreco Uk Ltd
Central Services to the Public,Emergency Planning,Corporate & Democratic,Supplies & Services,"Printing, Stationery & General Office Expenses",Stationery,14/12/2017,229813,31.31,Lyreco Uk Ltd
Planning & Development,Economic Development,Estates and Economic Development ,Supplies & Services,Grants & Subscriptions,Grants,20/12/2017,230985,750,The Gin Stall Ltd
Environmental & Regulatory,Waste management,Environmental,Transport Related Expenditure,Direct Transport Costs,Repair Materials,20/12/2017,230432,629.25,Dennis Eagle Ltd
Central Services to the Public,Management & Support Services,Environmental,Transport Related Expenditure,Direct Transport Costs,External Garages,06/12/2017,229730,231,Bodyshop24
Central Services to the Public,Management & Support Services,Environmental,Transport Related Expenditure,Direct Transport Costs,Repair Materials,06/12/2017,229730,419,Bodyshop24
Central Services to the Public,Management & Support Services,Legal & Democratic,Employees,Indirect Employee Expenses,Agency Staff - Waged Posts,20/12/2017,230739,652.5,Venn Group
"Highways, Roads & Transport",Parking Services,Plan Pol & Transport,Supplies & Services,Grants & Subscriptions,Subscriptions,20/12/2017,230801,654,British Parking Association
Cultural & Related,Open Spaces,Environmental,Transport Related Expenditure,Direct Transport Costs,Repair Materials,07/12/2017,229736,655.43,R Hunt (Agricultural Engineers) Ltd
Environmental & Regulatory,Street Cleansing (not chargeable to Highways),Environmental,Supplies & Services,"Equipment, Furniture & Materials",Purchase Equip + Materials,14/12/2017,229785,447.12,Lyreco Uk Ltd
Central Services to the Public,Management & Support Services,Environmental,Supplies & Services,"Equipment, Furniture & Materials",Purchase Equip + Materials,14/12/2017,229785,22.56,Lyreco Uk Ltd
Central Services to the Public,Management & Support Services,Environmental,Supplies & Services,"Printing, Stationery & General Office Expenses",Stationery,14/12/2017,229785,120.62,Lyreco Uk Ltd
Central Services to the Public,Management & Support Services,Environmental,Supplies & Services,"Printing, Stationery & General Office Expenses",Print Consumables,14/12/2017,229785,65.95,Lyreco Uk Ltd
Planning & Development,Development Control,Planning & Building,Employees,Indirect Employee Expenses,Temporary Staff,14/12/2017,230223,658.7,Oyster Partnership
Central Services to the Public,Management & Support Services,Estates and Economic Development ,Third Party Payments,Other Establishments,Private Contractors,20/12/2017,230832,675,Empire Industrial Doors Ltd
Central Services to the Public,Management & Support Services,Estates and Economic Development ,Supplies & Services,Communications & Computing,Telephone Tracking System,07/12/2017,229918,42,Teletrac Navman (Uk) Ltd
Environmental & Regulatory,Regulatory Services,Estates and Economic Development ,Supplies & Services,Communications & Computing,Telephone Tracking System,07/12/2017,229918,12,Teletrac Navman (Uk) Ltd
Environmental & Regulatory,Regulatory Services,Housing and Environmental Health ,Supplies & Services,Communications & Computing,Telephone Tracking System,07/12/2017,229918,6,Teletrac Navman (Uk) Ltd
Environmental & Regulatory,Regulatory Services,Housing and Environmental Health ,Supplies & Services,Communications & Computing,Telephone Tracking System,07/12/2017,229918,12,Teletrac Navman (Uk) Ltd
Cultural & Related,Open Spaces,Community and Leisure ,Supplies & Services,Communications & Computing,Telephone Tracking System,07/12/2017,229918,6,Teletrac Navman (Uk) Ltd
Cultural & Related,Open Spaces,Community and Leisure ,Supplies & Services,Communications & Computing,Telephone Tracking System,07/12/2017,229918,6,Teletrac Navman (Uk) Ltd
"Highways, Roads & Transport",Parking Services,Plan Pol & Transport,Supplies & Services,Communications & Computing,Telephone Tracking System,07/12/2017,229918,12,Teletrac Navman (Uk) Ltd
Cultural & Related,Open Spaces,Environmental,Supplies & Services,Communications & Computing,Telephone Tracking System,07/12/2017,229918,246,Teletrac Navman (Uk) Ltd
Environmental & Regulatory,Street Cleansing (not chargeable to Highways),Environmental,Supplies & Services,Communications & Computing,Telephone Tracking System,07/12/2017,229918,168,Teletrac Navman (Uk) Ltd
Environmental & Regulatory,Waste management,Environmental,Supplies & Services,Communications & Computing,Telephone Tracking System,07/12/2017,229918,138,Teletrac Navman (Uk) Ltd
Environmental & Regulatory,Waste management,Environmental,Supplies & Services,Communications & Computing,Telephone Tracking System,07/12/2017,229918,12,Teletrac Navman (Uk) Ltd
Central Services to the Public,Management & Support Services,Environmental,Supplies & Services,Communications & Computing,Telephone Tracking System,07/12/2017,229918,18,Teletrac Navman (Uk) Ltd
External Trading Accounts,Property Investments,Estates and Economic Development ,Third Party Payments,Other Establishments,Private Contractors,06/12/2017,229766,681,Gdr Gates & Doors Ltd
Cultural & Related,Culture & Heritage,Community and Leisure ,Supplies & Services,Catering,Non-Contract Catering,14/12/2017,229806,686.34,Carlsberg Uk Ltd
Central Services to the Public,Management & Support Services,Legal & Democratic,Employees,Indirect Employee Expenses,Agency Staff - Waged Posts,14/12/2017,228207,697.5,Venn Group
Central Services to the Public,Management & Support Services,Legal & Democratic,Employees,Indirect Employee Expenses,Agency Staff - Waged Posts,14/12/2017,228722,708.75,Venn Group
Environmental & Regulatory,"Cemetery, Cremation and Mortuary Services",Community and Leisure ,Premises related Expenditure,Grounds Maintenance Costs,Gm - Additional Works,14/12/2017,229444,871.64,St Peters Church
Cultural & Related,Open Spaces,Community and Leisure ,Premises related Expenditure,Grounds Maintenance Costs,Gm - Additional Works,07/12/2017,229714,750,T H White Ltd
Cultural & Related,Open Spaces,Environmental,Transport Related Expenditure,Direct Transport Costs,External Garages,07/12/2017,229737,750,R Hunt (Agricultural Engineers) Ltd
Central Services,Corporate & Democratic Core,Corporate & Democratic,Supplies & Services,Services,Professional Advice,14/12/2017,230243,750,Dc Commercial Solicitors
Central Services to the Public,Management & Support Services,Environmental,Transport Related Expenditure,Direct Transport Costs,Oils,14/12/2017,230411,755.59,Fuchs Lubricants (Uk) Plc
Central Services to the Public,Management & Support Services,Finance,Supplies & Services,"Printing, Stationery & General Office Expenses",Postage Costs,07/12/2017,229420,782.86,Whistl Uk Ltd
"Highways, Roads & Transport",Parking Services,Plan Pol & Transport,Supplies & Services,"Equipment, Furniture & Materials",Purchase Equip + Materials,07/12/2017,229759,795.61,Cale Briparc Ltd
Cultural & Related,Open Spaces,Community and Leisure ,Premises related Expenditure,Grounds Maintenance Costs,Gm - Additional Works,07/12/2017,229740,796.43,Personal data - Data Protection Act 1998
Central Services to the Public,Management & Support Services,Legal & Democratic,Supplies & Services,Communications & Computing,Computer Software,07/12/2017,229214,796.7,Iken Business Ltd
Planning & Development,Community Development,Community and Leisure ,Supplies & Services,Grants & Subscriptions,Grants,13/12/2017,230421,959.66,Forces Re-Engineered Cic
Planning & Development,Economic Development,Estates and Economic Development ,Supplies & Services,Services,Training Courses,14/12/2017,230407,990,Essential Fire & Electrical Services
Planning & Development,Community Development,Community and Leisure ,Supplies & Services,Grants & Subscriptions,Grants,13/12/2017,230415,1000,The Abel Foundation
Planning & Development,Economic Development,Estates and Economic Development ,Supplies & Services,Grants & Subscriptions,Grants,07/12/2017,229783,1000,GT Marketing & Pr
Central Services to the Public,Management & Support Services,Estates and Economic Development ,Supplies & Services,"Equipment, Furniture & Materials",Equipment Hire,07/12/2017,229885,862.5,Crown Water & Coffee
Environmental & Regulatory,Regulatory Services,Housing and Environmental Health ,Supplies & Services,Miscellaneous Expenses,Kennel fees,20/12/2017,230804,870,Anton Vets Ltd
Cultural & Related,Culture & Heritage,Community and Leisure ,Supplies & Services,Catering,Non-Contract Catering,20/12/2017,230995,894.02,Carlsberg Uk Ltd
Environmental & Regulatory,Regulatory Services,Housing and Environmental Health ,Supplies & Services,Grants and subscriptions,Capital Grants,20/12/2017,230989,1078.4,Andover Fire & Security Ltd
Planning & Development,Economic Development,Estates and Economic Development ,Supplies & Services,Miscellaneous Expenses,Promotions / Special Events,07/12/2017,230012,1080.7,The Potters Heron
Environmental & Regulatory,"Cemetery, Cremation and Mortuary Services",Community and Leisure ,Supplies & Services,Miscellaneous Expenses,National Assist Act Burials,20/12/2017,231023,1081,Dunnings Funeral Services
Central Services to the Public,Management & Support Services,Legal & Democratic,Employees,Indirect Employee Expenses,Agency Staff - Waged Posts,14/12/2017,230239,911.25,Venn Group
Central Services to the Public,Management & Support Services,Estates and Economic Development ,Third Party Payments,Other Establishments,Private Contractors,07/12/2017,230003,924.95,Alarms & Electrical (Devizes) Ltd
Central Services to the Public,Management & Support Services,Legal & Democratic,Employees,Indirect Employee Expenses,Agency Staff - Waged Posts,14/12/2017,229758,945,Venn Group
Cultural & Related,Open Spaces,Community and Leisure ,Premises related Expenditure,Grounds Maintenance Costs,Gm - Additional Works,14/12/2017,230227,975,Personal data - Data Protection Act 1998
Central Services to the Public,Local Tax Collection,Revenues,Supplies & Services,Communications & Computing,Software Maintenance,07/12/2017,229811,331.67,Otech Ltd
Housing Services,Housing Benefits ,Revenues,Supplies & Services,Communications & Computing,Software Maintenance,07/12/2017,229811,331.67,Otech Ltd
Central Services to the Public,Local Tax Collection,Revenues,Supplies & Services,Communications & Computing,Software Maintenance,07/12/2017,229811,331.66,Otech Ltd
Environmental & Regulatory,Regulatory Services,Housing and Environmental Health ,Supplies & Services,Communications & Computing,Computer Software,14/12/2017,230492,1000,Rh Environmental Ltd
Central Services to the Public,Management & Support Services,Finance,Supplies & Services,Services,Project Consultancy - Policy,20/12/2017,231019,1000,Public Sector Consultants Ltd
Cultural & Related,Open Spaces,Community and Leisure ,Premises related Expenditure,Grounds Maintenance Costs,Gm - Additional Works,07/12/2017,229747,1000,Fabtech Engineering Lted
Environmental & Regulatory,Waste management,Environmental,Employees,Indirect Employee Expenses,Agency Staff - Waged Posts,14/12/2017,230406,1013.76,365 Supply Ltd
Central Services to the Public,Local Tax Collection,Revenues,Supplies & Services,Services,Professional Fees,07/12/2017,229805,369.66,Ross & Roberts
Cultural & Related,Open Spaces,Environmental,Transport Related Expenditure,Direct Transport Costs,Repair Materials,20/12/2017,230515,140,M D Services
Environmental & Regulatory,Street Cleansing (not chargeable to Highways),Environmental,Transport Related Expenditure,Direct Transport Costs,Repair Materials,20/12/2017,230515,140,M D Services
Environmental & Regulatory,Waste management,Environmental,Transport Related Expenditure,Direct Transport Costs,Repair Materials,20/12/2017,230515,80,M D Services
Environmental & Regulatory,Waste management,Environmental,Transport Related Expenditure,Direct Transport Costs,Repair Materials,20/12/2017,230515,40,M D Services
Central Services to the Public,Management & Support Services,Environmental,Transport Related Expenditure,Direct Transport Costs,Workshop Consumables,20/12/2017,230515,180.96,M D Services
Central Services to the Public,Management & Support Services,Environmental,Transport Related Expenditure,Direct Transport Costs,Repair Materials,20/12/2017,230515,450.3,M D Services
Central Services to the Public,Management & Support Services,HR Services,Supplies & Services,Services,Training Courses,20/12/2017,230828,1038,Adaptis Ltd
Central Services to the Public,Management & Support Services,Chief Executive's,Supplies & Services,"Printing, Stationery & General Office Expenses",Photocopying Costs,14/12/2017,229177,583.56,Ricoh Uk Ltd
Central Services to the Public,Management & Support Services,HR Services,Supplies & Services,"Printing, Stationery & General Office Expenses",Photocopying Costs,14/12/2017,229177,200,Ricoh Uk Ltd
Central Services to the Public,Management & Support Services,IT,Supplies & Services,"Printing, Stationery & General Office Expenses",Photocopying Costs,14/12/2017,229177,210.88,Ricoh Uk Ltd
Central Services,Corporate & Democratic Core,Corporate & Democratic,Supplies & Services,"Printing, Stationery & General Office Expenses",Photocopying Costs,14/12/2017,229177,20,Ricoh Uk Ltd
Central Services,Corporate & Democratic Core,Corporate & Democratic,Supplies & Services,"Printing, Stationery & General Office Expenses",Photocopying Costs,14/12/2017,229177,20,Ricoh Uk Ltd
Central Services,Corporate & Democratic Core,Corporate & Democratic,Supplies & Services,"Printing, Stationery & General Office Expenses",Photocopying Costs,14/12/2017,229177,20,Ricoh Uk Ltd
Planning & Development,Development Control,Planning & Building,Third Party Payments,Commuted Sum,s106 Developer contributions,14/12/2017,230428,1290.13,Chilbolton Parish Council
Environmental & Regulatory,Regulatory Services,Housing and Environmental Health ,Supplies & Services,Grants and subscriptions,Capital Grants,07/12/2017,229907,1293.41,1st Choice Stairlifts Ltd
Environmental & Regulatory,Waste management,Environmental,Transport Related Expenditure,Direct Transport Costs,Repair Materials,07/12/2017,229733,1079.56,Tmr Tail Lifts (Thruxton)
Planning & Development,Development Control,Planning & Building,Third Party Payments,Commuted Sum,s106 Developer contributions,14/12/2017,230418,1300,Graham Wilkins
Central Services to the Public,Management & Support Services,Housing and Environmental Health ,Supplies & Services,Grants & Subscriptions,Subscriptions,14/12/2017,230400,1095,Hqn Ltd
"Highways, Roads & Transport",Highways and roads - maintenance,Plan Pol & Transport,Supplies & Services,"Equipment, Furniture & Materials",Purchase Equip + Materials,20/12/2017,230402,1100,Coupe Line
Cultural & Related,Recreation & Sport,Community and Leisure ,Premises related Expenditure,Cleaning and domestic supplies,Cleaning Materials-Purchases,07/12/2017,229738,1108.23,Gripdeck Uk Llp
Central Services to the Public,Management & Support Services,IT,Supplies & Services,Services,Project Consultancy - Systems,14/12/2017,229994,1125,Nuvola Distribution Ltd
Central Services to the Public,Management & Support Services,Finance,Supplies & Services,"Printing, Stationery & General Office Expenses",Postage Costs,20/12/2017,230722,1140.5,Whistl Uk Ltd
Central Services to the Public,Management & Support Services,Legal & Democratic,Employees,Indirect Employee Expenses,Agency Staff - Waged Posts,14/12/2017,229172,1203.75,Venn Group
Central Services to the Public,Management & Support Services,Legal & Democratic,Supplies & Services,Services,Professional Advice,20/12/2017,229727,411.25,Dc Commercial Solicitors
Environmental & Regulatory,Regulatory Services,Housing and Environmental Health ,Supplies & Services,Services,Professional Advice,20/12/2017,229727,796.25,Dc Commercial Solicitors
Central Services to the Public,Management & Support Services,Estates and Economic Development ,Third Party Payments,Private contractors,Main Contractor Costs,14/12/2017,230518,1210,Butler & Young Approved Inspectors Ltd
Central Services to the Public,Management & Support Services,Housing and Environmental Health ,Employees,Indirect Employee Expenses,Temporary Staff,14/12/2017,230241,1216,Buckingham Futures Limited
Cultural & Related,Culture & Heritage,Community and Leisure ,Supplies & Services,Catering,Non-Contract Catering,20/12/2017,230217,1223.24,Carlsberg Uk Ltd
Central Services to the Public,Management & Support Services,Finance,Supplies & Services,"Printing, Stationery & General Office Expenses",Postage Costs,14/12/2017,230201,1232.83,Whistl Uk Ltd
Central Services to the Public,Management & Support Services,Housing and Environmental Health ,Employees,Indirect Employee Expenses,Temporary Staff,14/12/2017,230240,1248,Buckingham Futures Limited
Central Services to the Public,Management & Support Services,Legal & Democratic,Employees,Indirect Employee Expenses,Agency Staff - Waged Posts,14/12/2017,228206,1248.75,Venn Group
"Highways, Roads & Transport",Parking Services,Plan Pol & Transport,Premises related Expenditure,Repairs Alterations & Maintenance of Buildings,Car Parks - Signs + Lines,14/12/2017,230403,1250,Coupe Line
External Trading Accounts,Property Investments,Estates and Economic Development ,Third Party Payments,Private contractors,Main Contractor Costs,20/12/2017,230854,1255.74,Wessex Ecoenergy Ltd
Cultural & Related,Open Spaces,Environmental,Supplies & Services,"Equipment, Furniture & Materials",Purchase Equip + Materials,07/12/2017,226805,1264.8,Natural Stone & Timber 
Environmental & Regulatory,Waste management,Environmental,Transport Related Expenditure,Direct Transport Costs,Repair Materials,14/12/2017,227681,1274.66,Dennis Eagle Ltd
Planning & Development,Planning Policy,Plan Pol & Transport,Supplies & Services,Grants & Subscriptions,Grants,14/12/2017,228203,1549.15,Hampshire County Council
Cultural & Related,Tourism,Estates and Economic Development ,Premises related Expenditure,Repairs Alterations & Maintenance of Buildings,Planned Maintenance - Non Est,07/12/2017,229987,19.5,Temple Lifts Ltd
Cultural & Related,Culture & Heritage,Estates and Economic Development ,Premises related Expenditure,Repairs Alterations & Maintenance of Buildings,Planned Maintenance - Non Est,07/12/2017,229987,201.5,Temple Lifts Ltd
Cultural & Related,Culture & Heritage,Estates and Economic Development ,Premises related Expenditure,Repairs Alterations & Maintenance of Buildings,Planned Maintenance - Non Est,07/12/2017,229987,19.5,Temple Lifts Ltd
Central Services to the Public,Management & Support Services,Estates and Economic Development ,Premises related Expenditure,Repairs Alterations & Maintenance of Buildings,Planned Maintenance - Non Est,07/12/2017,229987,806,Temple Lifts Ltd
Cultural & Related,Recreation & Sport,Community and Leisure ,Premises related Expenditure,Repairs Alterations & Maintenance of Buildings,Planned Maintenance - Non Est,07/12/2017,229987,201.5,Temple Lifts Ltd
Cultural & Related,Culture & Heritage,Community and Leisure ,Premises related Expenditure,Repairs Alterations & Maintenance of Buildings,Planned Maintenance - Non Est,07/12/2017,229987,49.42,Temple Lifts Ltd
"Highways, Roads & Transport",Public Transport,Plan Pol & Transport,Third Party Payments,Transport Operators in Respect of Concessionary Fares,Voluntary Orgs Reimbursement,14/12/2017,230266,1584,Andover Neighbourcare
Cultural & Related,Open Spaces,Environmental,Transport Related Expenditure,Direct Transport Costs,Repair Materials,07/12/2017,229981,1353,Oakes Bros Ltd
Central Services to the Public,Local Tax Collection,Revenues,Supplies & Services,Miscellaneous Expenses,All Pay Fees,14/12/2017,230220,1360.44,Allpay Limited
"Highways, Roads & Transport",Public Transport,Plan Pol & Transport,Third Party Payments,Transport Operators in Respect of Concessionary Fares,Voluntary Orgs Reimbursement,14/12/2017,230265,1665.5,Andover Neighbourcare
Environmental & Regulatory,Regulatory Services,Housing and Environmental Health ,Supplies & Services,Miscellaneous Expenses,Promotions / Special Events,14/12/2017,230497,1424,Andover Gas Engineers Ltd
Cultural & Related,Culture & Heritage,Community and Leisure ,Supplies & Services,Miscellaneous Expenses,Booking Of Acts,20/12/2017,230794,1438.66,Sands Productions
Central Services to the Public,Management & Support Services,Estates and Economic Development ,Premises related Expenditure,Repairs Alterations & Maintenance of Buildings,Planned Maintenance - Non Est,07/12/2017,229325,280,Aquacare
Cultural & Related,Recreation & Sport,Community and Leisure ,Premises related Expenditure,Repairs Alterations & Maintenance of Buildings,Planned Maintenance - Non Est,07/12/2017,229325,280,Aquacare
Cultural & Related,Recreation & Sport,Community and Leisure ,Premises related Expenditure,Repairs Alterations & Maintenance of Buildings,Planned Maintenance - Non Est,07/12/2017,229325,280,Aquacare
Cultural & Related,Recreation & Sport,Community and Leisure ,Premises related Expenditure,Repairs Alterations & Maintenance of Buildings,Planned Maintenance - Non Est,07/12/2017,229325,280,Aquacare
Cultural & Related,Recreation & Sport,Community and Leisure ,Premises related Expenditure,Repairs Alterations & Maintenance of Buildings,Planned Maintenance - Non Est,07/12/2017,229325,220,Aquacare
Cultural & Related,Culture & Heritage,Community and Leisure ,Premises related Expenditure,Repairs Alterations & Maintenance of Buildings,Planned Maintenance - Non Est,07/12/2017,229325,220,Aquacare
Central Services to the Public,Management & Support Services,Estates and Economic Development ,Premises related Expenditure,Energy Costs,Gas,20/12/2017,230824,1593.68,Total Gas & Power Ltd
Planning & Development,Development Control,Planning & Building,Employees,Indirect Employee Expenses,Temporary Staff,07/12/2017,229695,1606.13,Oyster Partnership
Central Services to the Public,Management & Support Services,Estates and Economic Development ,Third Party Payments,Other Establishments,Contract Catering,20/12/2017,230750,1651.07,Edwards And Ward Ltd
Environmental & Regulatory,Regulatory Services,Housing and Environmental Health ,Supplies & Services,Miscellaneous Expenses,Kennel fees,14/12/2017,230001,1660.9,Newbury Lodge Kennels
"Highways, Roads & Transport",Public Transport,Plan Pol & Transport,Third Party Payments,Transport Operators in Respect of Concessionary Fares,Voluntary Orgs Reimbursement,14/12/2017,230504,2006,Andover Neighbourcare
Environmental & Regulatory,Regulatory Services,Housing and Environmental Health ,Supplies & Services,Miscellaneous Expenses,Kennel fees,07/12/2017,229729,1712.48,Newbury Lodge Kennels
External Trading Accounts,Business Parks,Estates and Economic Development ,Premises related Expenditure,Repairs Alterations & Maintenance of Buildings,Building Maint - Non Estates,14/12/2017,230004,170.9,Alarms & Electrical (Devizes) Ltd
External Trading Accounts,Business Parks,Estates and Economic Development ,Premises related Expenditure,Repairs Alterations & Maintenance of Buildings,Building Maint - Non Estates,14/12/2017,230004,104.9,Alarms & Electrical (Devizes) Ltd
Cultural & Related,Culture & Heritage,Estates and Economic Development ,Premises related Expenditure,Repairs Alterations & Maintenance of Buildings,Building Maint - Non Estates,14/12/2017,230004,83,Alarms & Electrical (Devizes) Ltd
Cultural & Related,Culture & Heritage,Estates and Economic Development ,Premises related Expenditure,Repairs Alterations & Maintenance of Buildings,Building Maint - Non Estates,14/12/2017,230004,87,Alarms & Electrical (Devizes) Ltd
Cultural & Related,Culture & Heritage,Estates and Economic Development ,Premises related Expenditure,Repairs Alterations & Maintenance of Buildings,Building Maint - Non Estates,14/12/2017,230004,18.45,Alarms & Electrical (Devizes) Ltd
Cultural & Related,Culture & Heritage,Estates and Economic Development ,Premises related Expenditure,Repairs Alterations & Maintenance of Buildings,Building Maint - Non Estates,14/12/2017,230004,62.85,Alarms & Electrical (Devizes) Ltd
Central Services to the Public,Management & Support Services,Estates and Economic Development ,Premises related Expenditure,Repairs Alterations & Maintenance of Buildings,Building Maint - Non Estates,14/12/2017,230004,811.2,Alarms & Electrical (Devizes) Ltd
Central Services to the Public,Management & Support Services,Estates and Economic Development ,Premises related Expenditure,Repairs Alterations & Maintenance of Buildings,Building Maint - Non Estates,14/12/2017,230004,73,Alarms & Electrical (Devizes) Ltd
Central Services to the Public,Management & Support Services,Estates and Economic Development ,Premises related Expenditure,Repairs Alterations & Maintenance of Buildings,Building Maint - Non Estates,14/12/2017,230004,18.45,Alarms & Electrical (Devizes) Ltd
Cultural & Related,Recreation & Sport,Community and Leisure ,Premises related Expenditure,Repairs Alterations & Maintenance of Buildings,Building Maint - Non Estates,14/12/2017,230004,101,Alarms & Electrical (Devizes) Ltd
Cultural & Related,Culture & Heritage,Community and Leisure ,Premises related Expenditure,Repairs Alterations & Maintenance of Buildings,Building Maint - Non Estates,14/12/2017,230004,138.5,Alarms & Electrical (Devizes) Ltd
Cultural & Related,Culture & Heritage,Community and Leisure ,Premises related Expenditure,Repairs Alterations & Maintenance of Buildings,Building Maint - Non Estates,14/12/2017,230004,166.24,Alarms & Electrical (Devizes) Ltd
Central Services to the Public,Management & Support Services,Estates and Economic Development ,Third Party Payments,Other Establishments,Private Contractors,07/12/2017,229982,1850,Gibson & Co Ceilings
Cultural & Related,Culture & Heritage,Community and Leisure ,Third Party Payments,Private contractors,Main Contractor Costs,07/12/2017,227411,1950,Wake'S Decorating Ltd
Central Services to the Public,Management & Support Services,Estates and Economic Development ,Third Party Payments,Other Establishments,Private Contractors,14/12/2017,230200,1950,Purbeck Civil Engineering Limited
Environmental & Regulatory,Street Cleansing (not chargeable to Highways),Environmental,Supplies & Services,"Equipment, Furniture & Materials",Purchase Equip + Materials,07/12/2017,229784,1971.5,Jrb Enterpise Ltd
Environmental & Regulatory,Regulatory Services,Housing and Environmental Health ,Supplies & Services,Grants and subscriptions,Capital Grants,06/12/2017,229897,2365.97,Personal data - Data Protection Act 1998
"Highways, Roads & Transport",Parking Services,Plan Pol & Transport,Premises related Expenditure,Repairs Alterations & Maintenance of Buildings,Car Park General Repairs,07/12/2017,229452,2022.3,Irvine Grenson Ltd
Planning & Development,Planning Policy,Plan Pol & Transport,Supplies & Services,Services,Project Consultancy - Policy,20/12/2017,230735,2085,Hampshire County Council
Planning & Development,Development Control,Planning & Building,Third Party Payments,Commuted Sum,s106 Developer contributions,20/12/2017,231086,2560.99,King'S Sombourne Parish Council
Environmental & Regulatory,Waste management,Environmental,Employees,Indirect Employee Expenses,Agency Staff - Waged Posts,20/12/2017,230408,1673.82,365 Supply Ltd
Environmental & Regulatory,Waste management,Environmental,Employees,Indirect Employee Expenses,Agency Staff - Waged Posts,20/12/2017,230408,468.58,365 Supply Ltd
Environmental & Regulatory,Waste management,Environmental,Transport Related Expenditure,Direct Transport Costs,External Garages,07/12/2017,229732,769.38,Dennis Eagle Ltd
Environmental & Regulatory,Waste management,Environmental,Transport Related Expenditure,Direct Transport Costs,Repair Materials,07/12/2017,229732,1468.32,Dennis Eagle Ltd
Planning & Development,Planning Policy,Plan Pol & Transport,Supplies & Services,Services,Project Consultancy - Policy,14/12/2017,228712,2717.29,I-Transport Llp
Cultural & Related,Culture & Heritage,Community and Leisure ,Supplies & Services,Miscellaneous Expenses,Booking Of Acts,07/12/2017,229719,2302,Avalon Management Group Ltd
"Highways, Roads & Transport",Parking Services,Plan Pol & Transport,Premises related Expenditure,Energy Costs,Electricity,14/12/2017,230278,2310.82,Southern Electric
Environmental & Regulatory,Waste management,Environmental,Employees,Indirect Employee Expenses,Agency Staff - Waged Posts,07/12/2017,229917,1784.42,365 Supply Ltd
Environmental & Regulatory,Waste management,Environmental,Employees,Indirect Employee Expenses,Agency Staff - Waged Posts,07/12/2017,229917,528.86,365 Supply Ltd
Central Services to the Public,Management & Support Services,Housing and Environmental Health ,Employees,Indirect Employee Expenses,Temporary Staff,20/12/2017,230736,2320,Buckingham Futures Limited
Cultural & Related,Culture & Heritage,Community and Leisure ,Supplies & Services,Services,Project Consultancy - Policy,20/12/2017,230734,2800,Personal data - Data Protection Act 1998
Cultural & Related,Culture & Heritage,Community and Leisure ,Third Party Payments,Other Establishments,Private Contractors,07/12/2017,230002,2450,Spear Electrical Limited
Cultural & Related,Culture & Heritage,Community and Leisure ,Supplies & Services,"Printing, Stationery & General Office Expenses",Postage Costs,14/12/2017,229502,2463.94,Document Despatch Ltd
Central Services to the Public,Management & Support Services,Estates and Economic Development ,Premises related Expenditure,Water Services,Water And Sewerage Charges,07/12/2017,229466,2984.35,Business Stream
Planning & Development,Economic Development,Estates and Economic Development ,Supplies & Services,Services,Training Courses,14/12/2017,230252,2500,Solace Enterprises Ltd
Cultural & Related,Culture & Heritage,Community and Leisure ,Supplies & Services,Catering,Caf�/ bar consumables,07/12/2017,228343,22.37,Carlsberg Uk Ltd
Cultural & Related,Culture & Heritage,Community and Leisure ,Supplies & Services,Catering,Non-Contract Catering,07/12/2017,228343,2521.96,Carlsberg Uk Ltd
Central Services to the Public,Management & Support Services,Finance,Supplies & Services,"Printing, Stationery & General Office Expenses",Postage Costs,14/12/2017,230244,2639.35,Pitney Bowes Limited
Central Services to the Public,Management & Support Services,Environmental,Transport Related Expenditure,Direct Transport Costs,Diesel,14/12/2017,230508,2655.16,Hall Fuels
Cultural & Related,Culture & Heritage,Community and Leisure ,Supplies & Services,Miscellaneous Expenses,Booking Of Acts,07/12/2017,229720,2696.66,Off The Kerb Productions
Central Services to the Public,Management & Support Services,IT,Supplies & Services,Services,Training Courses,14/12/2017,230249,2775,Purple Griffon Ltd
Environmental & Regulatory,Regulatory Services,Housing and Environmental Health ,Supplies & Services,Grants and subscriptions,Capital Grants,07/12/2017,229906,3359.9,Prism Medical Uk
Environmental & Regulatory,Regulatory Services,Housing and Environmental Health ,Supplies & Services,Grants and subscriptions,Capital Grants,07/12/2017,229905,3380,Liftech Systems (Se) Ltd
Cultural & Related,Culture & Heritage,Community and Leisure ,Supplies & Services,Miscellaneous Expenses,Promotions / Special Events,07/12/2017,229688,2862.5,Venture Security Management
Environmental & Regulatory,Regulatory Services,Housing and Environmental Health ,Supplies & Services,Grants and subscriptions,Capital Grants,20/12/2017,230999,3522.67,Bartram Building Maintenance Services
Cultural & Related,Culture & Heritage,Community and Leisure ,Supplies & Services,Miscellaneous Expenses,Booking Of Acts,20/12/2017,230793,2994.66,Sweeney Entertainments
Environmental & Regulatory,Waste management,Environmental,Supplies & Services,"Printing, Stationery & General Office Expenses",External Printing,07/12/2017,229749,3021.5,Cammegh Davies Fleming
Cultural & Related,Culture & Heritage,Community and Leisure ,Supplies & Services,Miscellaneous Expenses,Booking Of Acts,14/12/2017,230213,3038,Sweeney Entertainments
Central Services to the Public,Management & Support Services,Environmental,Transport Related Expenditure,Direct Transport Costs,Diesel,07/12/2017,229755,3051.64,Hall Fuels
Central Services to the Public,Management & Support Services,Environmental,Transport Related Expenditure,Direct Transport Costs,Diesel,07/12/2017,229754,3062.49,Hall Fuels
Cultural & Related,Culture & Heritage,Community and Leisure ,Supplies & Services,Miscellaneous Expenses,Booking Of Acts,07/12/2017,229922,3195.34,Jethro Enterprises Ltd
Environmental & Regulatory,Regulatory Services,Housing and Environmental Health ,Supplies & Services,Grants and subscriptions,Capital Grants,20/12/2017,230997,3914.64,Bartram Building Maintenance Services
Cultural & Related,Culture & Heritage,Community and Leisure ,Supplies & Services,Miscellaneous Expenses,Booking Of Acts,14/12/2017,230488,3265.63,The Big Wooden Horse (Uk) Ltd
External Trading Accounts,Business Parks,Estates and Economic Development ,Supplies & Services,Services,Professional Fees,14/12/2017,230272,3500,The Genesis Design Studio Ltd
Central Services to the Public,Management & Support Services,Estates and Economic Development ,Third Party Payments,Private contractors,Main Contractor Costs,14/12/2017,230486,3530,Wake'S Decorating Ltd
Cultural & Related,Open Spaces,Environmental,Supplies & Services,"Equipment, Furniture & Materials",Purchases for playgrounds,07/12/2017,229690,3847.5,Ahs Ltd
Environmental & Regulatory,Street Cleansing (not chargeable to Highways),Environmental,Transport Related Expenditure,Direct Transport Costs,Tyres,14/12/2017,229978,85.2,Ats Euromaster Limited
Environmental & Regulatory,Waste management,Environmental,Transport Related Expenditure,Direct Transport Costs,Tyres,14/12/2017,229978,2575.62,Ats Euromaster Limited
Environmental & Regulatory,Waste management,Environmental,Transport Related Expenditure,Direct Transport Costs,Tyres,14/12/2017,229978,890.74,Ats Euromaster Limited
Central Services to the Public,Management & Support Services,Environmental,Transport Related Expenditure,Direct Transport Costs,Repair Materials,14/12/2017,229978,364.88,Ats Euromaster Limited
Planning & Development,Economic Development,Estates and Economic Development ,Premises related Expenditure,Rates,Nndr,20/12/2017,231087,4711,Southampton City Council
Cultural & Related,Recreation & Sport,Community and Leisure ,Premises related Expenditure,Repairs Alterations & Maintenance of Buildings,Estates premises costs - AMP,14/12/2017,230205,3960,Purbeck Civil Engineering Limited
Central Services to the Public,Management & Support Services,Housing and Environmental Health ,Supplies & Services,Grants & Subscriptions,Subscriptions,14/12/2017,229997,4098,Advanced Legal Solutions Ltd
Central Services to the Public,Local Land Charges,Legal & Democratic,Supplies & Services,Miscellaneous Expenses,Land Charges Fees,20/12/2017,230780,4241.25,Hampshire County Council
Central Services to the Public,Management & Support Services,Environmental,Transport Related Expenditure,Direct Transport Costs,Diesel,07/12/2017,229718,4429.8,Hall Fuels
Central Services to the Public,Management & Support Services,Estates and Economic Development ,Third Party Payments,Other Establishments,Private Contractors,20/12/2017,230864,4436,Sonic Scaffolding 2000 Ltd
Central Services to the Public,Management & Support Services,Plan Pol & Transport,Supplies & Services,"Equipment, Furniture & Materials",Purchase Equip + Materials,07/12/2017,229683,4706,Signway Supplies (Datchet Ltd)
"Highways, Roads & Transport",Parking Services,Plan Pol & Transport,Supplies & Services,Services,Professional Fees,14/12/2017,230487,4805.05,Keyline Chartered Security Ltd
Planning & Development,Development Control,Planning & Building,Employees,Indirect Employee Expenses,Temporary Staff,14/12/2017,230209,5890,Hampshire Planning Limited
Cultural & Related,Recreation & Sport,Community and Leisure ,Premises related Expenditure,Grounds Maintenance Costs,Gm - Additional Works,14/12/2017,229677,5080.7,Fresh Air Fitness
Cultural & Related,Recreation & Sport,Community and Leisure ,Premises related Expenditure,Grounds Maintenance Costs,Gm - Additional Works,14/12/2017,229678,5080.7,Fresh Air Fitness
Central Services to the Public,Management & Support Services,Estates and Economic Development ,Supplies & Services,"Equipment, Furniture & Materials",Purchase Materials (Job Cost),07/12/2017,229999,5101,Guardian Staff Safety Systems Ltd
Central Services to the Public,Management & Support Services,Estates and Economic Development ,Third Party Payments,Other Establishments,Private Contractors,20/12/2017,230860,5145.58,Tls Fire & Security Llp
Central Services to the Public,Management & Support Services,Plan Pol & Transport,Premises related Expenditure,Repairs Alterations & Maintenance of Buildings,General Repairs,14/12/2017,229998,6065.39,Colas Ltd
Central Services to the Public,Management & Support Services,Estates and Economic Development ,Third Party Payments,Other Establishments,Private Contractors,07/12/2017,229942,6848,Alarms & Electrical (Devizes) Ltd
Environmental & Regulatory,Regulatory Services,Housing and Environmental Health ,Supplies & Services,Grants and subscriptions,Capital Grants,20/12/2017,231000,8892.92,Pcr Construction
Central Services to the Public,Management & Support Services,Community and Leisure ,Employees,Indirect Employee Expenses,Temporary Staff,14/12/2017,230263,9608.76,Romsey Community School
Central Services to the Public,Management & Support Services,Community and Leisure ,Transport Related Expenditure,Direct Transport Costs,Officer Essential Mileage,14/12/2017,230263,444.4,Romsey Community School
Central Services to the Public,Management & Support Services,Community and Leisure ,Supplies & Services,Miscellaneous Expenses,Promotions / Special Events,14/12/2017,230263,68.5,Romsey Community School
Environmental & Regulatory,Waste management,Environmental,Supplies & Services,"Equipment, Furniture & Materials",Purchase Equip + Materials,07/12/2017,229745,9000,Mgb Plastics Ltd
Central Services to the Public,Management & Support Services,IT,Support Services,IT,IT Hardware costs,14/12/2017,230245,10330.56,Dell Computer Corporation Ltd
Environmental & Regulatory,Regulatory Services,Housing and Environmental Health ,Supplies & Services,Grants and subscriptions,Capital Grants,07/12/2017,229904,12400,Liftech Systems (Se) Ltd
Central Services to the Public,Management & Support Services,Estates and Economic Development ,Third Party Payments,Private contractors,Main Contractor Costs,20/12/2017,230779,10659.4,Temple Lifts Ltd
Cultural & Related,Recreation & Sport,Community and Leisure ,Premises related Expenditure,Repairs Alterations & Maintenance of Buildings,Estates premises costs - AMP,14/12/2017,229454,13336.3,White Horse Contractors Ltd
Planning & Development,Planning Policy,Plan Pol & Transport,Supplies & Services,Services,Project Consultancy - Policy,14/12/2017,229321,15020,Carter Jonas Llp
Planning & Development,Economic Development,Estates and Economic Development ,Supplies & Services,Services,Project Consultancy - Policy,07/12/2017,229501,16175,Central Management Solutions Ltd
Central Services to the Public,Management & Support Services,Estates and Economic Development ,Third Party Payments,Private contractors,Main Contractor Costs,20/12/2017,230751,18082.35,M & J (Construction & Roofing) Ltd
Cultural & Related,Culture & Heritage,Community and Leisure ,Third Party Payments,Private contractors,Main Contractor Costs,07/12/2017,229716,18228.41,Lockhams Construction Ltd
Cultural & Related,Culture & Heritage,Community and Leisure ,Third Party Payments,Private contractors,Main Contractor Costs,07/12/2017,229717,20628.86,Lockhams Construction Ltd
Central Services to the Public,Management & Support Services,Plan Pol & Transport,Supplies & Services,"Equipment, Furniture & Materials",Purchase Equip + Materials,20/12/2017,228316,21700,Clear Channel Uk Ltd
Central Services to the Public,Management & Support Services,Estates and Economic Development ,Third Party Payments,Private contractors,Main Contractor Costs,14/12/2017,230270,26648.5,Temple Lifts Ltd
Cultural & Related,Recreation & Sport,Community and Leisure ,Premises related Expenditure,Repairs Alterations & Maintenance of Buildings,Estates premises costs - AMP,14/12/2017,228958,29749.9,White Horse Contractors Ltd
Central Services to the Public,Management & Support Services,Estates and Economic Development ,Third Party Payments,Private contractors,Main Contractor Costs,07/12/2017,229462,69749,Proludic Ltd
Central Services to the Public,Management & Support Services,Environmental,Transport Related Expenditure,Direct Transport Costs,Vehicles and Plant,14/12/2017,230228,70525.7,Green Machines Sweepers Uk Ltd
Central Services to the Public,Management & Support Services,Estates and Economic Development ,Third Party Payments,Private contractors,Main Contractor Costs,14/12/2017,230211,73324.4,Ptc Construction Ltd
Cultural & Related,Recreation & Sport,Community and Leisure ,Third Party Payments,Private contractors,Main Contractor Costs,20/12/2017,230826,489496.51,Places For People Leisure Ltd - Developments
